Workbook

Sheet Vertiga Hybrid
B2: Selectiontool Vertiga Hybrid
F4: Taal/Language/Sprache/Språk/Jazyk | J4: English
F5: =IF(data!$P$38=1,"Type omkasting",IF(data!$P$38=2,"Case type",IF(data!$P$38=3,"Gehäusetyp",IF(data!$P$38=4,"Type de boîtier",IF(data!$P$38=5,"Foringsrør type",IF(data!$P$38=6,"Tipo de carcasa",IF(data!$P$38=7,"Typ av hölje",IF(data!$P$38=8,"Typ krytu")))))))) -> Case type | J5: Primo
F6: =IF(data!$P$38=1,"Uitvoering",IF(data!$P$38=2,"Version",IF(data!$P$38=3,"Ausfürhung",IF(data!$P$38=4,"Version",IF(data!$P$38=5,"Versjon",IF(data!$P$38=6,"Versión",IF(data!$P$38=7,"Prestanda",IF(data!$P$38=8,"Verze")))))))) -> Version | J6: 52 | K6: 200 | L6: 8 | M6: =data!E5 -> 9.2
J7: =IF(data!$P$38=1,NL!B3,IF(data!$P$38=2,EN!B3,IF(data!$P$38=4,FR!B3,IF(data!$P$38=3,DE!B3,IF(data!$P$38=5,NR!B3,IF(data!$P$38=6,SP!B3,IF(data!$P$38=7,SW!B3,IF(data!$P$38=8,TS!B3,)))))))) -> Length | K7: =IF(data!$P$38=1,NL!B4,IF(data!$P$38=2,EN!B4,IF(data!$P$38=4,FR!B4,IF(data!$P$38=3,DE!B4,IF(data!$P$38=5,NR!B4,IF(data!$P$38=6,SP!B4,IF(data!$P$38=7,SW!B4,IF(data!$P$38=8,TS!B4,)))))))) -> Heigth | L7: =IF(data!$P$38=1,NL!B5,IF(data!$P$38=2,EN!B5,IF(data!$P$38=4,FR!B5,IF(data!$P$38=3,DE!B5,IF(data!$P$38=5,NR!B5,IF(data!$P$38=6,SP!B5,IF(data!$P$38=7,SW!B5,IF(data!$P$38=8,TS!B5,)))))))) -> Type | M7: =IF(data!$P$38=1,NL!B6,IF(data!$P$38=2,EN!B6,IF(data!$P$38=4,FR!B6,IF(data!$P$38=3,DE!B6,IF(data!$P$38=5,NR!B6,IF(data!$P$38=6,SP!B6,IF(data!$P$38=7,SW!B6,IF(data!$P$38=8,TS!B6,)))))))) -> Depth
B8: =IF(data!$P$38=1,NL!E5,IF(data!$P$38=2,EN!E5,IF(data!$P$38=4,FR!E5,IF(data!$P$38=3,DE!E5,IF(data!$P$38=5,NR!E5,IF(data!$P$38=6,SP!E5,IF(data!$P$38=7,SW!E5,IF(data!$P$38=8,TS!E5,)))))))) -> Temperatures
B9: =IF(data!$P$38=1,NL!B8,IF(data!$P$38=2,EN!B8,IF(data!$P$38=4,FR!B8,IF(data!$P$38=3,DE!B8,IF(data!$P$38=5,NR!B8,IF(data!$P$38=6,SP!B8,IF(data!$P$38=7,SW!B8,IF(data!$P$38=8,TS!B8,)))))))) -> Heating: | G9: =IF(data!$P$38=1,NL!G8,IF(data!$P$38=2,EN!G8,IF(data!$P$38=4,FR!G8,IF(data!$P$38=3,DE!G8,IF(data!$P$38=5,NR!G8,IF(data!$P$38=6,SP!G8,IF(data!$P$38=7,SW!G8,IF(data!$P$38=8,TS!G8,)))))))) -> Cooling:
B10: =IF(data!$P$38=1,NL!B9,IF(data!$P$38=2,EN!B9,IF(data!$P$38=4,FR!B9,IF(data!$P$38=3,DE!B9,IF(data!$P$38=5,NR!B9,IF(data!$P$38=6,SP!B9,IF(data!$P$38=7,SW!B9,IF(data!$P$38=8,TS!B9,)))))))) -> Supply water | C10: 0 | D10: 0 | E10: 60 | F10: =IF(data!$R$31=1,"°C",IF(data!$R$31=2,"°F",)) -> °C | G10: =B10 -> Supply water | H10: 0 | I10: 0 | J10: 16 | K10: =F10 -> °C | L10: =IF(data!$P$38=1,NL!G4,IF(data!$P$38=2,EN!G4,IF(data!$P$38=4,FR!G4,IF(data!$P$38=3,DE!G4,IF(data!$P$38=5,NR!G4,IF(data!$P$38=6,SP!G4,IF(data!$P$38=7,SW!G4,IF(data!$P$38=8,TS!G4,)))))))) -> Unit conversion
B11: =IF(data!$P$38=1,NL!B10,IF(data!$P$38=2,EN!B10,IF(data!$P$38=4,FR!B10,IF(data!$P$38=3,DE!B10,IF(data!$P$38=5,NR!B10,IF(data!$P$38=6,SP!B10,IF(data!$P$38=7,SW!B10,IF(data!$P$38=8,TS!B10,)))))))) -> Return water | C11: 0 | D11: 0 | E11: 40 | F11: =F10 -> °C | G11: =B11 -> Return water | H11: 0 | I11: 0 | J11: 18 | K11: =F10 -> °C
B12: =IF(data!$P$38=1,NL!B11,IF(data!$P$38=2,EN!B11,IF(data!$P$38=4,FR!B11,IF(data!$P$38=3,DE!B11,IF(data!$P$38=5,NR!B11,IF(data!$P$38=6,SP!B11,IF(data!$P$38=7,SW!B11,IF(data!$P$38=8,TS!B11,)))))))) -> Entering air (dry bulb) | C12: 0 | D12: 0 | E12: 20 | F12: =F10 -> °C | G12: =B12 -> Entering air (dry bulb) | H12: 0 | I12: 0 | J12: 28 | K12: =F10 -> °C
G13: =IF(data!$P$38=1,NL!$G$3,IF(data!$P$38=2,EN!$G$3,IF(data!$P$38=4,FR!$G$3,IF(data!$P$38=3,DE!$G$3,IF(data!$P$38=5,NR!$G$3,IF(data!$P$38=6,SP!$G$3,IF(data!$P$38=7,SW!$G$3,IF(data!$P$38=8,TS!$G$3,)))))))) -> rel. humid. | J13: 0.5
B16: =IF(data!$P$38=1,NL!B16,IF(data!$P$38=2,EN!B16,IF(data!$P$38=4,FR!B16,IF(data!$P$38=3,DE!B16,IF(data!$P$38=5,NR!B16,IF(data!$P$38=6,SP!B16,IF(data!$P$38=7,SW!B16,IF(data!$P$38=8,TS!B16,)))))))) -> Fan speed | C16: =IF(data!$P$38=1,NL!B19,IF(data!$P$38=2,EN!B19,IF(data!$P$38=4,FR!B19,IF(data!$P$38=3,DE!B19,IF(data!$P$38=5,NR!B19,IF(data!$P$38=6,SP!B19,IF(data!$P$38=7,SW!B19,IF(data!$P$38=8,TS!B19,)))))))) -> Fan voltage [V] | D16: =IF(data!$P$38=1,NL!C14,IF(data!$P$38=2,EN!C14,IF(data!$P$38=4,FR!C14,IF(data!$P$38=3,DE!C14,IF(data!$P$38=5,NR!C14,IF(data!$P$38=6,SP!C14,IF(data!$P$38=7,SW!C14,IF(data!$P$38=8,TS!C14,))))))))&IF(data!$R$31=1," [W]",IF(data!$R$31=2," [Btu/h]",)) -> Heating capacity [W] | E16: =IF(data!$P$38=1,NL!D14,IF(data!$P$38=2,EN!D14,IF(data!$P$38=4,FR!D14,IF(data!$P$38=3,DE!D14,IF(data!$P$38=5,NR!D14,IF(data!$P$38=6,SP!D14,IF(data!$P$38=7,SW!D14,IF(data!$P$38=8,TS!D14,))))))))&IF(data!$R$31=1," [kg/u]",IF(data!$R$31=2," [GPM]**",)) -> Water flow [kg/u] | G16: =IF(data!$P$38=1,NL!E14,IF(data!$P$38=2,EN!E14,IF(data!$P$38=4,FR!E14,IF(data!$P$38=3,DE!E14,IF(data!$P$38=5,NR!E14,IF(data!$P$38=6,SP!E14,IF(data!$P$38=7,SW!E14,IF(data!$P$38=8,TS!E14,))))))))&IF(data!$R$31=1," [W]",IF(data!$R$31=2," [Btu/h]",)) -> Cooling capacity [W] | H16: =E16 -> Water flow [kg/u] | J16: =IF(data!$P$38=1,NL!I13,IF(data!$P$38=2,EN!I13,IF(data!$P$38=4,FR!I13,IF(data!$P$38=3,DE!I13,IF(data!$P$38=5,NR!I13,IF(data!$P$38=6,SP!I13,IF(data!$P$38=7,SW!I13,IF(data!$P$38=8,TS!I13,)))))))) -> Sound pressure level [dB(A)]**** | K16: =IF(data!$P$38=1,NL!J13,IF(data!$P$38=2,EN!J13,IF(data!$P$38=4,FR!J13,IF(data!$P$38=3,DE!J13,IF(data!$P$38=5,NR!J13,IF(data!$P$38=6,SP!J13,IF(data!$P$38=7,SW!J13,IF(data!$P$38=8,TS!J13,)))))))) -> Sound power [dB(A)]**** | L16: =IF(data!$P$38=1,NL!H13,IF(data!$P$38=2,EN!H13,IF(data!$P$38=4,FR!H13,IF(data!$P$38=3,DE!H13,IF(data!$P$38=5,NR!H13,IF(data!$P$38=6,SP!H13,IF(data!$P$38=7,SW!H13,IF(data!$P$38=8,TS!H13,)))))))) -> Electrical consumption [W] | M16: =IF(data!$P$38=1,NL!G13,IF(data!$P$38=2,EN!G13,IF(data!$P$38=4,FR!G13,IF(data!$P$38=3,DE!G13,IF(data!$P$38=5,NR!G13,IF(data!$P$38=6,SP!G13,IF(data!$P$38=7,SW!G13,IF(data!$P$38=8,TS!G13,))))))))&" [l]" -> Water volume [l]
B17: =CONCATENATE("Vertiga Hybrid, ",J7, " ",J6, "cm, ",K7, " ",K6,"cm, ",L7, " ",L6) -> Vertiga Hybrid, Length 52cm, Heigth 200cm, Type 8 | C17: 0 | D17: 0 | E17: 0 | F17: 0 | G17: 0 | H17: 0 | I17: 0 | J17: 0 | K17: 0 | L17: 0 | M17: 0
B18: 1 | C18: =data!AR5 -> N/A | D18: =ROUND(IF(data!$R$31=1,data!S5,IF(data!$R$31=2,data!S5*3.412141633,)),0) -> 827 | E18: =IF(data!$R$31=1,ROUND(data!W5,0),IF(data!$R$31=2,ROUND(data!W5/272.7654,1),)) -> 36 | G18: =IF(data!BF5=1,ROUND(IF(data!$R$31=1,data!AF5,IF(data!$R$31=2,data!AF5*3.412141633,)),0),"") -> 165 | H18: =IF(data!BF5=1,IF(data!$R$31=1,ROUND(data!AI5,0),IF(data!$R$31=2,ROUND(data!AI5/272.7654,1),)),"") -> 71 | J18: =data!G5 -> 26 | K18: =J18+8 -> 34 | L18: =data!AM5 -> N/A | M18: =IF(data!$R$31=1,data!AL$5,IF(data!$R$31=2,data!AL$5/4.54609,)) -> 1.4
B19: 2 | C19: =data!AS5 -> N/A | D19: =ROUND(IF(data!$R$31=1,data!T5,IF(data!$R$31=2,data!T5*3.412141633,)),0) -> 946 | E19: =IF(data!$R$31=1,ROUND(data!X5,0),IF(data!$R$31=2,ROUND(data!X5/272.7654,1),)) -> 41 | G19: =IF(data!BF5=1,ROUND(IF(data!$R$31=1,data!AG5,IF(data!$R$31=2,data!AG5*3.412141633,)),0),"") -> 197 | H19: =IF(data!BF5=1,IF(data!$R$31=1,ROUND(data!AJ5,0),IF(data!$R$31=2,ROUND(data!AJ5/272.7654,1),)),"") -> 85 | J19: =data!H5 -> 30 | K19: =J19+8 -> 38 | L19: =data!AN5 -> N/A | M19: =IF(data!$R$31=1,data!AL$5,IF(data!$R$31=2,data!AL$5/4.54609,)) -> 1.4
B20: 3 | C20: =data!AT5 -> N/A | D20: =ROUND(IF(data!$R$31=1,data!U5,IF(data!$R$31=2,data!U5*3.412141633,)),0) -> 1325 | E20: =IF(data!$R$31=1,ROUND(data!Y5,0),IF(data!$R$31=2,ROUND(data!Y5/272.7654,1),)) -> 57 | G20: =IF(data!BF5=1,ROUND(IF(data!$R$31=1,data!AH5,IF(data!$R$31=2,data!AH5*3.412141633,)),0),"") -> 260 | H20: =IF(data!BF5=1,IF(data!$R$31=1,ROUND(data!AK5,0),IF(data!$R$31=2,ROUND(data!AK5/272.7654,1),)),"") -> 112 | J20: =data!I5 -> 36.6 | K20: =J20+8 -> 44.6 | L20: =data!AO5 -> N/A | M20: =IF(data!$R$31=1,data!AL$5,IF(data!$R$31=2,data!AL$5/4.54609,)) -> 1.4
B21: * | C21: =IF(data!$P$38=1,NL!B20,IF(data!$P$38=2,EN!B20,IF(data!$P$38=4,FR!B20,IF(data!$P$38=3,DE!B20,IF(data!$P$38=5,NR!B20,IF(data!$P$38=6,SP!B20,IF(data!$P$38=7,SW!B20,IF(data!$P$38=8,TS!B20,)))))))) -> Cooling power is calcullated according EN16430 with fans blowing up for all heights. | M21: v2021-05-08
B22: ** | C22: =IF(data!$P$38=1,NL!B21,IF(data!$P$38=2,EN!B21,IF(data!$P$38=4,FR!B21,IF(data!$P$38=3,DE!B21,IF(data!$P$38=5,NR!B21,IF(data!$P$38=6,SP!B21,IF(data!$P$38=7,SW!B21,IF(data!$P$38=8,TS!B21,)))))))) -> When the water volume is given in gallons, the units are specifically imperial gallons.
B23: *** | C23: =IF(data!$P$38=1,NL!B22,IF(data!$P$38=2,EN!B22,IF(data!$P$38=4,FR!B22,IF(data!$P$38=3,DE!B22,IF(data!$P$38=5,NR!B22,IF(data!$P$38=6,SP!B22,IF(data!$P$38=7,SW!B22,IF(data!$P$38=8,TS!B22,)))))))) -> Soundpower according to ISO 3741:2010, sound pressure level with assumed room damping of 8 dB(A). | D23: =IF(data!$P$38=1,NL!C22,IF(data!$P$38=2,EN!C22,IF(data!$P$38=4,FR!C22,IF(data!$P$38=3,DE!C22,IF(data!$P$38=5,NR!C22,IF(data!$P$38=6,SP!C22,)))))) -> 0 | E23: =IF(data!$P$38=1,NL!D22,IF(data!$P$38=2,EN!D22,IF(data!$P$38=4,FR!D22,IF(data!$P$38=3,DE!D22,IF(data!$P$38=5,NR!D22,IF(data!$P$38=6,SP!D22,)))))) -> 0 | F23: =IF(data!$P$38=1,NL!E22,IF(data!$P$38=2,EN!E22,IF(data!$P$38=4,FR!E22,IF(data!$P$38=3,DE!E22,IF(data!$P$38=5,NR!E22,IF(data!$P$38=6,SP!E22,)))))) -> 0 | G23: =IF(data!$P$38=1,NL!F22,IF(data!$P$38=2,EN!F22,IF(data!$P$38=4,FR!F22,IF(data!$P$38=3,DE!F22,IF(data!$P$38=5,NR!F22,IF(data!$P$38=6,SP!F22,)))))) -> 0 | H23: =IF(data!$P$38=1,NL!G22,IF(data!$P$38=2,EN!G22,IF(data!$P$38=4,FR!G22,IF(data!$P$38=3,DE!G22,IF(data!$P$38=5,NR!G22,IF(data!$P$38=6,SP!G22,)))))) -> 0 | I23: =IF(data!$P$38=1,NL!H22,IF(data!$P$38=2,EN!H22,IF(data!$P$38=4,FR!H22,IF(data!$P$38=3,DE!H22,IF(data!$P$38=5,NR!H22,IF(data!$P$38=6,SP!H22,)))))) -> 0 | J23: =IF(data!$P$38=1,NL!I22,IF(data!$P$38=2,EN!I22,IF(data!$P$38=4,FR!I22,IF(data!$P$38=3,DE!I22,IF(data!$P$38=5,NR!I22,IF(data!$P$38=6,SP!I22,)))))) -> 0 | K23: =IF(data!$P$38=1,NL!J22,IF(data!$P$38=2,EN!J22,IF(data!$P$38=4,FR!J22,IF(data!$P$38=3,DE!J22,IF(data!$P$38=5,NR!J22,IF(data!$P$38=6,SP!J22,)))))) -> 0 | L23: =IF(data!$P$38=1,NL!K22,IF(data!$P$38=2,EN!K22,IF(data!$P$38=4,FR!K22,IF(data!$P$38=3,DE!K22,IF(data!$P$38=5,NR!K22,IF(data!$P$38=6,SP!K22,)))))) -> 0 | M23: =IF(data!$P$38=1,NL!L22,IF(data!$P$38=2,EN!L22,IF(data!$P$38=4,FR!L22,IF(data!$P$38=3,DE!L22,IF(data!$P$38=5,NR!L22,IF(data!$P$38=6,SP!L22,)))))) -> 0
C24: =IF(data!$P$38=1,NL!B23,IF(data!$P$38=2,EN!B23,IF(data!$P$38=4,FR!B23,IF(data!$P$38=3,DE!B23,IF(data!$P$38=5,NR!B23,IF(data!$P$38=6,SP!B23,)))))) -> 0 | D24: =IF(data!$P$38=1,NL!C23,IF(data!$P$38=2,EN!C23,IF(data!$P$38=4,FR!C23,IF(data!$P$38=3,DE!C23,IF(data!$P$38=5,NR!C23,IF(data!$P$38=6,SP!C23,)))))) -> 0 | E24: =IF(data!$P$38=1,NL!D23,IF(data!$P$38=2,EN!D23,IF(data!$P$38=4,FR!D23,IF(data!$P$38=3,DE!D23,IF(data!$P$38=5,NR!D23,IF(data!$P$38=6,SP!D23,)))))) -> 0 | F24: =IF(data!$P$38=1,NL!E23,IF(data!$P$38=2,EN!E23,IF(data!$P$38=4,FR!E23,IF(data!$P$38=3,DE!E23,IF(data!$P$38=5,NR!E23,IF(data!$P$38=6,SP!E23,)))))) -> 0 | G24: =IF(data!$P$38=1,NL!F23,IF(data!$P$38=2,EN!F23,IF(data!$P$38=4,FR!F23,IF(data!$P$38=3,DE!F23,IF(data!$P$38=5,NR!F23,IF(data!$P$38=6,SP!F23,)))))) -> 0 | H24: =IF(data!$P$38=1,NL!G23,IF(data!$P$38=2,EN!G23,IF(data!$P$38=4,FR!G23,IF(data!$P$38=3,DE!G23,IF(data!$P$38=5,NR!G23,IF(data!$P$38=6,SP!G23,)))))) -> 0 | I24: =IF(data!$P$38=1,NL!H23,IF(data!$P$38=2,EN!H23,IF(data!$P$38=4,FR!H23,IF(data!$P$38=3,DE!H23,IF(data!$P$38=5,NR!H23,IF(data!$P$38=6,SP!H23,)))))) -> 0 | J24: =IF(data!$P$38=1,NL!I23,IF(data!$P$38=2,EN!I23,IF(data!$P$38=4,FR!I23,IF(data!$P$38=3,DE!I23,IF(data!$P$38=5,NR!I23,IF(data!$P$38=6,SP!I23,)))))) -> 0 | K24: =IF(data!$P$38=1,NL!J23,IF(data!$P$38=2,EN!J23,IF(data!$P$38=4,FR!J23,IF(data!$P$38=3,DE!J23,IF(data!$P$38=5,NR!J23,IF(data!$P$38=6,SP!J23,)))))) -> 0 | L24: =IF(data!$P$38=1,NL!K23,IF(data!$P$38=2,EN!K23,IF(data!$P$38=4,FR!K23,IF(data!$P$38=3,DE!K23,IF(data!$P$38=5,NR!K23,IF(data!$P$38=6,SP!K23,)))))) -> 0 | M24: =IF(data!$P$38=1,NL!L23,IF(data!$P$38=2,EN!L23,IF(data!$P$38=4,FR!L23,IF(data!$P$38=3,DE!L23,IF(data!$P$38=5,NR!L23,IF(data!$P$38=6,SP!L23,)))))) -> 0

Sheet data (hidden)
J1: heating | K1: Ti | L1: =IF($R$31=1,$M1,IF($R$31=2,(M1-32)/1.8,)) -> 60 | M1: ='Vertiga Hybrid'!E10 -> 60 | Z1: cooling | AA1: Ti | AB1: =IF($R$31=1,$AC1,IF($R$31=2,($AC1-32)/1.8,)) -> 16 | AC1: ='Vertiga Hybrid'!J10 -> 16 | AE1: RH | AF1: ='Vertiga Hybrid'!J13 -> 0.5
K2: Tr | L2: =IF($R$31=1,$M2,IF($R$31=2,(M2-32)/1.8,)) -> 40 | M2: ='Vertiga Hybrid'!E11 -> 40 | AA2: Tr | AB2: =IF($R$31=1,$AC2,IF($R$31=2,($AC2-32)/1.8,)) -> 18 | AC2: ='Vertiga Hybrid'!J11 -> 18
K3: Ta | L3: =IF($R$31=1,$M3,IF($R$31=2,(M3-32)/1.8,)) -> 20 | M3: ='Vertiga Hybrid'!E12 -> 20 | AA3: Ta | AB3: =IF($R$31=1,$AC3,IF($R$31=2,($AC3-32)/1.8,)) -> 28 | AC3: ='Vertiga Hybrid'!J12 -> 28
A4: kolomindex | B4: 2 | C4: 3 | D4: 4 | E4: 5 | F4: 6 | G4: 7 | H4: 8 | I4: 9 | J4: 10 | K4: 11 | L4: 12 | M4: 13 | N4: 14 | O4: 15 | P4: 16 | Q4: 17 | R4: 18 | S4: 19 | T4: 20 | U4: 21 | V4: 22 | W4: 23 | X4: 24 | Y4: 25 | Z4: 26 | AA4: 27 | AB4: 28 | AC4: 29 | AD4: 30 | AE4: 31 | AF4: 32 | AG4: 33 | AH4: 34 | AI4: 35 | AJ4: 36 | AK4: 37 | AL4: 38 | AM4: 39 | AN4: 40 | AO4: 41 | AP4: 42 | AQ4: 43 | AR4: 44 | AS4: 45 | AT4: 46 | AU4: 47 | AV4: 48 | AW4: 49 | AX4: 50 | AY4: 51 | AZ4: 52 | BA4: 53 | BB4: 54 | BC4: 55 | BD4: 56 | BE4: 57 | BF4: 58
A5: =CONCATENATE('Vertiga Hybrid'!K6,'Vertiga Hybrid'!J6,'Vertiga Hybrid'!L6) -> 200528 | B5: =VLOOKUP($A$5,$A$9:$BF$14,B4,0) -> 200 | C5: 52 | D5: 8 | E5: 9.2 | F5: 0 | G5: 26 | H5: 30 | I5: 36.6 | J5: 0 | K5: 1428 | L5: 1633 | M5: 2289 | N5: 0 | O5: 1 | P5: 1 | Q5: 1 | R5: 0 | S5: 827 | T5: 946 | U5: 1325 | V5: 0 | W5: 36 | X5: 41 | Y5: 57 | Z5: 151 | AA5: 180 | AB5: 237 | AC5: 0.95 | AD5: 0.95 | AE5: 0.95 | AF5: 165 | AG5: 197 | AH5: 260 | AI5: 71 | AJ5: 85 | AK5: 112 | AL5: 1.4 | AM5: N/A | AN5: N/A | AO5: N/A | AP5: =VLOOKUP($A$5,$A$9:$BF$14,AP4,0) -> 0 | AQ5: 0 | AR5: =VLOOKUP($A$5,$A$9:$BF$14,AR4,0) -> N/A | AS5: N/A | AT5: N/A | AU5: 0 | AV5: 1 | AW5: 1 | AX5: 1 | AY5: 165 | AZ5: 197 | BA5: 260 | BB5: 0 | BC5: 0 | BD5: 0 | BE5: 0 | BF5: =VLOOKUP($A$5,$A$9:$BF$14,BF4,0) -> 1
F7: soundpressure level | J7: power | K7: 75/65/20 | N7: n | R7: result | S7: power | V7: result | W7: flow | Z7: power | AA7: 16/18/27 | AC7: n | AF7: result | AG7: power | AI7: result | AJ7: flow | AM7: electrical power nominal | AS7: BMS-stuurspanning | AV7: Sensible heat factor | AY7: Total cooling capacity | BC7: Diff. Total and sensible | BF7: Show or not
A8: lookup code | B8: height | C8: length | D8: type | E8: depth | F8: 0 | G8: 1 | H8: 2 | I8: 3 | J8: 0 | K8: 1 | L8: 2 | M8: 3 | N8: 0 | O8: 1 | P8: 2 | Q8: 3 | R8: 0 | S8: 1 | T8: 2 | U8: 3 | V8: 0 | W8: 1 | X8: 2 | Y8: 3 | Z8: 1 | AA8: 2 | AB8: 3 | AC8: 1 | AD8: 2 | AE8: 3 | AF8: 1 | AG8: 2 | AH8: 3 | AI8: 1 | AJ8: 2 | AK8: 3 | AL8: watervolume | AM8: 1 | AN8: 2 | AO8: 3 | AQ8: 0 | AR8: 1 | AS8: 2 | AT8: 3 | AV8: SHF 1 | AW8: SHF 2 | AX8: SHF 3 | AY8: Q,t 1 | AZ8: Q,t 2 | BA8: Q,t 3 | BC8: ΔQ,t,s 1 | BD8: ΔQ,t,s 2 | BE8: ΔQ,t,s 3 | BF8: OK/NOTOK
A9: =CONCATENATE(B9,C9,D9) -> 200418 | B9: 200 | C9: 41 | D9: 8 | E9: =IF('Vertiga Hybrid'!$J$5=data!$K$20,9.2,IF('Vertiga Hybrid'!$J$5=data!$K$21,11.5,"")) -> 9.2 | F9: 0 | G9: 26 | H9: 30 | I9: 33.3 | J9: 0 | K9: 1315 | L9: 1449 | M9: 1620 | N9: 0 | O9: 1 | P9: 1 | Q9: 1 | R9: =ROUND(J9*POWER((($L$1-$L$2)/LN(($L$1-$L$3)/($L$2-$L$3)))/((75-65)/LN((75-20)/(65-20))),N9),0) -> 0 | S9: =ROUND(K9*POWER((($L$1-$L$2)/LN(($L$1-$L$3)/($L$2-$L$3)))/((75-65)/LN((75-20)/(65-20))),O9),0) -> 761 | T9: =ROUND(L9*POWER((($L$1-$L$2)/LN(($L$1-$L$3)/($L$2-$L$3)))/((75-65)/LN((75-20)/(65-20))),P9),0) -> 839 | U9: =ROUND(M9*POWER((($L$1-$L$2)/LN(($L$1-$L$3)/($L$2-$L$3)))/((75-65)/LN((75-20)/(65-20))),Q9),0) -> 938 | V9: =ROUND(R9*3600/(4186*ABS($L$1-$L$2)),0) -> 0 | W9: =ROUND(S9*3600/(4186*ABS($L$1-$L$2)),0) -> 33 | X9: =ROUND(T9*3600/(4186*ABS($L$1-$L$2)),0) -> 36 | Y9: =ROUND(U9*3600/(4186*ABS($L$1-$L$2)),0) -> 40 | Z9: 127 | AA9: 154 | AB9: 178 | AC9: 0.95 | AD9: 0.95 | AE9: 0.95 | AF9: =ROUND(Z9*POWER((($AB$1-$AB$2)/LN(($AB$1-$AB$3)/($AB$2-$AB$3)))/((16-18)/LN((16-27)/(18-27))),AC9),0) -> 139 | AG9: 169 | AH9: =ROUND(AB9*POWER((($AB$1-$AB$2)/LN(($AB$1-$AB$3)/($AB$2-$AB$3)))/((16-18)/LN((16-27)/(18-27))),AE9),0) -> 195 | AI9: =ROUND(AF9*3600/(4186*ABS($AB$1-$AB$2)),0) -> 60 | AJ9: =ROUND(AG9*3600/(4186*ABS($AB$1-$AB$2)),0) -> 73 | AK9: =ROUND(AH9*3600/(4186*ABS($AB$1-$AB$2)),0) -> 84 | AL9: 1.4 | AM9: N/A | AN9: N/A | AO9: N/A | AQ9: 0 | AR9: N/A | AS9: N/A | AT9: N/A | AV9: =IF(1/(1+((2258*((0.622/((101325/(1*611*EXP(17.27*((($AB$1+$AB$2)/2)/((($AB$1+$AB$2)/2)+237.3))))))-1)*1000-(0.622/((101325/($AF$1*611*EXP(17.27*($AB$3/($AB$3+237.3))))))-1)*1000))/(1005*((($AB$1+$AB$2)/2)-$AB$3))))>1,1,1/(1+((2258*((0.622/((101325/(1*611*EXP(17.27*((($AB$1+$AB$2)/2)/((($AB$1+$AB$2)/2)+237.3))))))-1)*1000-(0.622/((101325/($AF$1*611*EXP(17.27*($AB$3/($AB$3+237.3))))))-1)*1000))/(1005*((($AB$1+$AB$2)/2)-$AB$3))))) -> 1 | AW9: =IF(1/(1+((2258*((0.622/((101325/(1*611*EXP(17.27*((($AB$1+$AB$2)/2)/((($AB$1+$AB$2)/2)+237.3))))))-1)*1000-(0.622/((101325/($AF$1*611*EXP(17.27*($AB$3/($AB$3+237.3))))))-1)*1000))/(1005*((($AB$1+$AB$2)/2)-$AB$3))))>1,1,1/(1+((2258*((0.622/((101325/(1*611*EXP(17.27*((($AB$1+$AB$2)/2)/((($AB$1+$AB$2)/2)+237.3))))))-1)*1000-(0.622/((101325/($AF$1*611*EXP(17.27*($AB$3/($AB$3+237.3))))))-1)*1000))/(1005*((($AB$1+$AB$2)/2)-$AB$3))))) -> 1 | AX9: =IF(1/(1+((2258*((0.622/((101325/(1*611*EXP(17.27*((($AB$1+$AB$2)/2)/((($AB$1+$AB$2)/2)+237.3))))))-1)*1000-(0.622/((101325/($AF$1*611*EXP(17.27*($AB$3/($AB$3+237.3))))))-1)*1000))/(1005*((($AB$1+$AB$2)/2)-$AB$3))))>1,1,1/(1+((2258*((0.622/((101325/(1*611*EXP(17.27*((($AB$1+$AB$2)/2)/((($AB$1+$AB$2)/2)+237.3))))))-1)*1000-(0.622/((101325/($AF$1*611*EXP(17.27*($AB$3/($AB$3+237.3))))))-1)*1000))/(1005*((($AB$1+$AB$2)/2)-$AB$3))))) -> 1 | AY9: =AF9/AV9 -> 139 | AZ9: 169 | BA9: 195 | BC9: =AY9-AF9 -> 0 | BD9: 0 | BE9: 0 | BF9: =IF(SUM(BC9:BE9)=0,1,0) -> 1
A10: =CONCATENATE(B10,C10,D10) -> 200528 | B10: 200 | C10: 52 | D10: 8 | E10: =IF('Vertiga Hybrid'!$J$5=data!$K$20,9.2,IF('Vertiga Hybrid'!$J$5=data!$K$21,11.5,"")) -> 9.2 | F10: 0 | G10: 26 | H10: 30 | I10: 36.6 | J10: 0 | K10: 1428 | L10: 1633 | M10: 2289 | N10: 0 | O10: 1 | P10: 1 | Q10: 1 | R10: 0 | S10: 827 | T10: 946 | U10: 1325 | V10: 0 | W10: 36 | X10: 41 | Y10: 57 | Z10: 151 | AA10: 180 | AB10: 237 | AC10: 0.95 | AD10: 0.95 | AE10: 0.95 | AF10: 165 | AG10: 197 | AH10: =ROUND(AB10*POWER((($AB$1-$AB$2)/LN(($AB$1-$AB$3)/($AB$2-$AB$3)))/((16-18)/LN((16-27)/(18-27))),AE10),0) -> 260 | AI10: 71 | AJ10: 85 | AK10: 112 | AL10: 1.4 | AM10: N/A | AN10: N/A | AO10: N/A | AQ10: 0 | AR10: N/A | AS10: N/A | AT10: N/A | AV10: =IF(1/(1+((2258*((0.622/((101325/(1*611*EXP(17.27*((($AB$1+$AB$2)/2)/((($AB$1+$AB$2)/2)+237.3))))))-1)*1000-(0.622/((101325/($AF$1*611*EXP(17.27*($AB$3/($AB$3+237.3))))))-1)*1000))/(1005*((($AB$1+$AB$2)/2)-$AB$3))))>1,1,1/(1+((2258*((0.622/((101325/(1*611*EXP(17.27*((($AB$1+$AB$2)/2)/((($AB$1+$AB$2)/2)+237.3))))))-1)*1000-(0.622/((101325/($AF$1*611*EXP(17.27*($AB$3/($AB$3+237.3))))))-1)*1000))/(1005*((($AB$1+$AB$2)/2)-$AB$3))))) -> 1 | AW10: 1 | AX10: 1 | AY10: 165 | AZ10: 197 | BA10: 260 | BC10: 0 | BD10: 0 | BE10: 0 | BF10: =IF(SUM(BC10:BE10)=0,1,0) -> 1
A11: =CONCATENATE(B11,C11,D11) -> 200658 | B11: 200 | C11: 65 | D11: 8 | E11: =IF('Vertiga Hybrid'!$J$5=data!$K$20,9.2,IF('Vertiga Hybrid'!$J$5=data!$K$21,11.5,"")) -> 9.2 | F11: 0 | G11: 26 | H11: 30 | I11: 39.9 | J11: 0 | K11: 1641 | L11: 1872 | M11: 3042 | N11: 0 | O11: 1 | P11: 1 | Q11: 1 | R11: 0 | S11: 950 | T11: 1084 | U11: 1761 | V11: 0 | W11: 41 | X11: 47 | Y11: 76 | Z11: 180 | AA11: 210 | AB11: 304 | AC11: 0.95 | AD11: 0.95 | AE11: 0.95 | AF11: 197 | AG11: 230 | AH11: 333 | AI11: 85 | AJ11: 99 | AK11: 143 | AL11: 1.4 | AM11: N/A | AN11: N/A | AO11: N/A | AQ11: 0 | AR11: N/A | AS11: N/A | AT11: N/A | AV11: 1 | AW11: 1 | AX11: 1 | AY11: 197 | AZ11: 230 | BA11: 333 | BC11: 0 | BD11: 0 | BE11: 0 | BF11: 1
A12: 2005312 | B12: 200 | C12: 53 | D12: 12 | E12: =IF('Vertiga Hybrid'!$J$5=data!$K$20,13.2,IF('Vertiga Hybrid'!$J$5=data!$K$21,15.8,"")) -> 13.2 | F12: 0 | G12: 26 | H12: 30 | I12: 38.7 | J12: 0 | K12: 2054 | L12: 2374 | M12: 2925 | N12: 0 | O12: 1 | P12: 1 | Q12: 1 | R12: 0 | S12: 1189 | T12: 1375 | U12: =ROUND(M12*POWER((($L$1-$L$2)/LN(($L$1-$L$3)/($L$2-$L$3)))/((75-65)/LN((75-20)/(65-20))),Q12),0) -> 1694 | V12: 0 | W12: 51 | X12: 59 | Y12: 73 | Z12: 230 | AA12: 281 | AB12: 410 | AC12: 0.95 | AD12: 0.95 | AE12: 0.95 | AF12: 252 | AG12: 308 | AH12: 449 | AI12: 108 | AJ12: 132 | AK12: 193 | AL12: 2.4 | AM12: N/A | AN12: N/A | AO12: N/A | AQ12: 0 | AR12: N/A | AS12: N/A | AT12: N/A | AV12: 1 | AW12: 1 | AX12: 1 | AY12: 252 | AZ12: 308 | BA12: 449 | BC12: 0 | BD12: 0 | BE12: 0 | BF12: 1
A13: 2007012 | B13: 200 | C13: 70 | D13: 12 | E13: =IF('Vertiga Hybrid'!$J$5=data!$K$20,13.2,IF('Vertiga Hybrid'!$J$5=data!$K$21,15.8,"")) -> 13.2 | F13: 0 | G13: 26 | H13: 30 | I13: 40.8 | J13: 0 | K13: 2941 | L13: 3808 | M13: 4362 | N13: 0 | O13: 1 | P13: 1 | Q13: 1 | R13: 0 | S13: 1703 | T13: 2205 | U13: 2526 | V13: 0 | W13: 73 | X13: 95 | Y13: 109 | Z13: 477 | AA13: 578 | AB13: 918 | AC13: 0.95 | AD13: 0.95 | AE13: 0.95 | AF13: 522 | AG13: 633 | AH13: 1006 | AI13: 224 | AJ13: 272 | AK13: 433 | AL13: 2.4 | AM13: N/A | AN13: N/A | AO13: N/A | AQ13: 0 | AR13: N/A | AS13: N/A | AT13: N/A | AV13: 1 | AW13: 1 | AX13: 1 | AY13: 522 | AZ13: 633 | BA13: 1006 | BC13: 0 | BD13: 0 | BE13: 0 | BF13: 1
A14: 2009012 | B14: 200 | C14: 90 | D14: 12 | E14: =IF('Vertiga Hybrid'!$J$5=data!$K$20,13.2,IF('Vertiga Hybrid'!$J$5=data!$K$21,15.8,"")) -> 13.2 | F14: 0 | G14: 26 | H14: 30 | I14: 42.9 | J14: 0 | K14: 3461 | L14: 4758 | M14: 5605 | N14: 0 | O14: 1 | P14: 1 | Q14: 1 | R14: 0 | S14: 2004 | T14: 2755 | U14: 3245 | V14: 0 | W14: 86 | X14: 118 | Y14: 140 | Z14: 717 | AA14: 859 | AB14: 1464 | AC14: 0.95 | AD14: 0.95 | AE14: 0.95 | AF14: 785 | AG14: 941 | AH14: 1604 | AI14: 338 | AJ14: 405 | AK14: 690 | AL14: 2.4 | AM14: N/A | AN14: N/A | AO14: N/A | AQ14: 0 | AR14: N/A | AS14: N/A | AT14: N/A | AV14: =IF(1/(1+((2258*((0.622/((101325/(1*611*EXP(17.27*((($AB$1+$AB$2)/2)/((($AB$1+$AB$2)/2)+237.3))))))-1)*1000-(0.622/((101325/($AF$1*611*EXP(17.27*($AB$3/($AB$3+237.3))))))-1)*1000))/(1005*((($AB$1+$AB$2)/2)-$AB$3))))>1,1,1/(1+((2258*((0.622/((101325/(1*611*EXP(17.27*((($AB$1+$AB$2)/2)/((($AB$1+$AB$2)/2)+237.3))))))-1)*1000-(0.622/((101325/($AF$1*611*EXP(17.27*($AB$3/($AB$3+237.3))))))-1)*1000))/(1005*((($AB$1+$AB$2)/2)-$AB$3))))) -> 1 | AW14: 1 | AX14: 1 | AY14: 785 | AZ14: 941 | BA14: 1604 | BC14: 0 | BD14: 0 | BE14: 0 | BF14: 1
L18: lengte | M18: hoogte | N18: type
K19: geselecteerd
K20: Primo | L20: =IF('Vertiga Hybrid'!$L$6=8,41,IF('Vertiga Hybrid'!$L$6=12,53,"")) -> 41 | M20: 200 | N20: 8
K21: Kirei | L21: =IF('Vertiga Hybrid'!$L$6=8,52,IF('Vertiga Hybrid'!$L$6=12,70,"")) -> 52 | N21: 12
L22: =IF('Vertiga Hybrid'!$L$6=8,65,IF('Vertiga Hybrid'!$L$6=12,90,"")) -> 65
K25: =IF($P$38=1,NL!I3,IF($P$38=2,EN!I3,IF($P$38=3,FR!I3,IF($P$38=4,DE!I3,IF($P$38=5,NR!I3,IF($P$38=6,SP!I3,IF($P$38=7,SW!I3,IF($P$38=8,TS!I3,IF($P$38=9,ExtraTaal1!I3,IF($P$38=10,ExtraTaal2!I3,IF($P$38=11,ExtraTaal3!I3,))))))))))) -> Copy all data | P25: Nederlands
K26: =IF($P$38=1,NL!I4,IF($P$38=2,EN!I4,IF($P$38=3,FR!I4,IF($P$38=4,DE!I4,IF($P$38=5,NR!I4,IF($P$38=6,SP!I4,IF($P$38=7,SW!I4,IF($P$38=8,TS!I4,IF($P$38=9,ExtraTaal1!I4,IF($P$38=10,ExtraTaal2!I4,IF($P$38=11,ExtraTaal3!I4,))))))))))) -> SI-units | P26: English
K27: =IF($P$38=1,NL!I5,IF($P$38=2,EN!I5,IF($P$38=3,FR!I5,IF($P$38=4,DE!I5,IF($P$38=5,NR!I5,IF($P$38=6,SP!I5,IF($P$38=7,SW!I5,IF($P$38=8,TS!I5,IF($P$38=9,ExtraTaal1!I5,IF($P$38=10,ExtraTaal2!I5,IF($P$38=11,ExtraTaal3!I5,))))))))))) -> Imperial-units | P27: Français
P28: Deutsch
P29: Norsk
P30: Español
P31: Svenska | R31: 1
P32: Čeština
P33: ExtraTaal1
P34: ExtraTaal2
P35: ExtraTaal3
P38: =IF('Vertiga Hybrid'!J4=data!$P$25,1,IF('Vertiga Hybrid'!J4=data!$P$26,2,IF('Vertiga Hybrid'!J4=data!$P$27,4,IF('Vertiga Hybrid'!J4=data!$P$28,3,IF('Vertiga Hybrid'!J4=data!$P$29,5,IF('Vertiga Hybrid'!J4=data!$P$30,6,IF('Vertiga Hybrid'!J4=data!$P$31,7,IF('Vertiga Hybrid'!J4=data!$P$32,8,IF('Vertiga Hybrid'!J4=data!$P$33,9,IF('Vertiga Hybrid'!J4=data!$P$34,10,IF('Vertiga Hybrid'!J4=data!$P$35,11,))))))))))) -> 2

Sheet NL (hidden)
B1: Selectiontool Strada Hybrid
B3: Lengte | D3: mm | E3: Invulformulier | F3: Statisch toestel | G3: rel. vocht. | H3: Unit | I3: Kopieer alle data
B4: Hoogte | D4: =D3 -> mm | E4: Uitvoering | F4: Hybrid toestel | G4: Eenheidsstelsel | H4: DBH set | I4: SI-eenheden
B5: Type | E5: Temperaturen | F5: DBH rail type | G5: Toestel | I5: Imperiale-eenheden
B6: Diepte | D6: =D3 -> mm | E6: Indien de ventilatoren uitgeschakeld zijn, is de afgifte een indicatieve waarde. | F6: Waterzijdig drukverlies
B8: Verwarmen: | G8: Koelen:
B9: Water aanvoer | E9: =B9 -> Water aanvoer | I9: =D9 -> 0
B10: Water retour | E10: =B10 -> Water retour | I10: =D9 -> 0
B11: Ruimte (droge bol) | E11: =B11 -> Ruimte (droge bol) | I11: =D9 -> 0
C13: =CONCATENATE(B8," ",C9,"/",C10,"/",C11) -> Verwarmen: // | E13: =CONCATENATE(G8," ",H9,"/",H10,"/",H11) -> Koelen: // | G13: Watervolume | H13: Elektrisch verbruik [W] | I13: Geluidsdrukniveau [dB(A)]**** | J13: Geluidsvermogen [dB(A)]****
C14: Verwarmvermogen | D14: Waterdebiet | E14: Koelvermogen | F14: =D14 -> Waterdebiet
A15: Statisch (indicatieve waarde)
A16: EN16430 | B16: Ventilatorsnelheid
B17: Ventilatorsnelheid 2
B18: Ventilatorsnelheid 3
B19: Stuurspanning [v]
A20: * | B20: Koelvermogen is berekend volgens EN16430 met de ventilatoren naar boven blazend voor alle types.
A21: ** | B21: Wanneer het watervolume in gallons wordt gegeven, zijn dit imperial gallons.
A22: *** | B22: Geluidsvermogen volgens ISO 3741:2010, Voor het geluidsdrukniveau is er een aangenomen kamerdemping van 8 dB(A).

Sheet EN (hidden)
B1: Selectiontool Strada Hybrid
B3: Length | D3: mm | E3: Formulary | F3: Static device | G3: rel. humid. | H3: Unit | I3: Copy all data
B4: Heigth | D4: =D3 -> mm | E4: Version | F4: Hybrid device | G4: Unit conversion | H4: DBH set | I4: SI-units
B5: Type | E5: Temperatures | F5: DBH rail type | G5: Device | I5: Imperial-units
B6: Depth | D6: =D3 -> mm | E6: If the fans are switched off, the output is an indicative value. | F6: Water side pressure loss
B8: Heating: | G8: Cooling:
B9: Supply water | E9: =B9 -> Supply water | I9: =D9 -> 0
B10: Return water | E10: =B10 -> Return water | I10: =D9 -> 0
B11: Entering air (dry bulb) | E11: =B11 -> Entering air (dry bulb) | I11: =D9 -> 0
C13: =CONCATENATE(B8," ",C9,"/",C10,"/",C11) -> Heating: // | E13: =CONCATENATE(G8," ",H9,"/",H10,"/",H11) -> Cooling: // | G13: Water volume | H13: Electrical consumption [W] | I13: Sound pressure level [dB(A)]**** | J13: Sound power [dB(A)]****
C14: Heating capacity | D14: Water flow | E14: Cooling capacity | F14: =D14 -> Water flow
A15: Fans off (indicative value)
A16: EN16430 | B16: Fan speed
B17: Fan speed selection 2
B18: Fan speed selection 3
B19: Fan voltage [V]
A20: * | B20: Cooling power is calcullated according EN16430 with fans blowing up for all heights.
A21: ** | B21: When the water volume is given in gallons, the units are specifically imperial gallons.
A22: *** | B22: Soundpower according to ISO 3741:2010, sound pressure level with assumed room damping of 8 dB(A).

Sheet FR (hidden)
B1: Selectiontool Strada Hybrid
B3: Longeur | D3: mm | E3: Formulaire | F3: Appareil statique | G3: hum. rel. | H3: Unité | I3: Copier toutes des données
B4: Hauteur | D4: =D3 -> mm | E4: Version | F4: Appareil Hybrid | G4: Système unitaire | H4: DBH set | I4: Unités-SI
B5: Type | E5: Températures | F5: DBH rail type | G5: Appareil | I5: Unités-Impériales
B6: Profondeur | D6: =D3 -> mm | E6: Si les ventilateurs sont éteints, la sortie est une valeur indicative. | F6: Perte de charge
B8: Chauffer: | G8: Refroidir:
B9: Entrée de l'eau | E9: =B9 -> Entrée de l'eau | I9: =D9 -> 0
B10: Retour de l'eau | E10: =B10 -> Retour de l'eau | I10: =D9 -> 0
B11: Ambiante (bulbe sec) | E11: =B11 -> Ambiante (bulbe sec) | I11: =D9 -> 0
C13: =CONCATENATE(B8," ",C9,"/",C10,"/",C11) -> Chauffer: // | E13: =CONCATENATE(G8," ",H9,"/",H10,"/",H11) -> Refroidir: // | G13: Volume d'eau | H13: Puissance absorbée elec. [W] | I13: Pression sonore [dB(A)]**** | J13: Puissance sonore [dB(A)]****
C14: Puissance de chauffer | D14: Débit d'eau | E14: Puissance de refroidir | F14: =D14 -> Débit d'eau
A15: Ventilateur éteint (indicative)
A16: EN16430 | B16: Vitesse ventilateur
B17: Vitesse du ventilateur 2
B18: Vitesse du ventilateur 3
B19: Tension ventilateur [V]
A20: * | B20: La puissance de refroidissement est calculée selon EN 16430 avec des ventilateurs qui soufflent pour toutes les hauteurs.
A21: ** | B21: Lorsque le volume d'eau est donné en gallons, ce sont des gallons impérial.
A22: *** | B22: Puissance acoustique selon ISO 3741: 2010, niveau de pression acoustique avec un amortissement de la pièce supposé de 8 dB(A).

Sheet DE (hidden)
B1: Selectiontool Strada Hybrid
B3: Länge | D3: mm | E3: Eingabefelder | F3: Statisches Gerät | G3: rel. Luftf. | H3: Unit | I3: Kopieren Sie alle daten
B4: Höhe | D4: =D3 -> mm | E4: Ausführung | F4: Hybrid Gerät | G4: Einheiten | H4: DBH set | I4: SI-einheiten
B5: Typ | E5: Temperaturen | F5: DBH rail typ | G5: Gerät | I5: Imperiale-einheiten
B6: Tiefe | C6: 11.5 | D6: =D3 -> mm | E6: Wenn die Lüfter ausgeschaltet sind, ist der Ausgang ein Richtwert. | F6: zug. wassers. Druckverlust
B8: Heizen: | G8: Kühlen:
B9: Vorlauf wasser | E9: =B9 -> Vorlauf wasser | I9: =D9 -> 0
B10: Rücklauf wasser | E10: =B10 -> Rücklauf wasser | I10: =D9 -> 0
B11: Raum (trocken) | E11: =B11 -> Raum (trocken) | I11: =D9 -> 0
C13: =CONCATENATE(B8," ",C9,"/",C10,"/",C11) -> Heizen: // | E13: =CONCATENATE(G8," ",H9,"/",H10,"/",H11) -> Kühlen: // | G13: Wasservolumen | H13: Elektr. Leistung [W] | I13: Schalldruckpegel [dB(A)]**** | J13: Schallleistungspegel [dB(A)]****
C14: Heizleistung | D14: Heizmittelstrom | E14: Kühlleistung | F14: Kühlmittelstrom
A15: Lüfter aus (richtwert)
A16: EN16430 | B16: Auslegungsstufe
B17: Auslegungsstufe 2
B18: Auslegungsstufe 3
B19: Lufterspannung [V]
A20: * | B20: Die Kühlleistung wird nach EN 16430 berechnet, wobei die Lüfter für alle Höhen hochgehen.
A21: ** | B21: Wenn das Wasservolumen in Gallonen angegeben ist, sind dies imperiale Gallonen.
A22: *** | B22: Schallleistung nach ISO 3741: 2010, Schalldruckpegel bei angenommener Raumdämpfung von 8 dB(A).

Sheet NR (hidden)
B1: Selectiontool Strada Hybrid
B3: Lengde | D3: mm | E3: Inngangsskjema | F3: Statisk modell | G3: rel. fuktighet | H3: Unit | I3: Kopier alle data
B4: Høyde | D4: =D3 -> mm | E4: Versjon | F4: Hybrid modell | G4: Enhetssystem | H4: DBH set | I4: SI-enheter
B5: Type | E5: Temperaturer | F5: DBH rail type | G5: Modell | I5: Imperiale-enheter
B6: Bredde | D6: =D3 -> mm | E6: Hvis viftene er slått av, er utgangen en indikativ verdi. | F6: Trykktap
B8: Varme: | G8: Kjøling:
B9: Tur vann | E9: =B9 -> Tur vann | I9: =D9 -> 0
B10: Retur vann | E10: =B10 -> Retur vann | I10: =D9 -> 0
B11: Rom (tørr pære) | E11: =B11 -> Rom (tørr pære) | I11: =D9 -> 0
C13: =CONCATENATE(B8," ",C9,"/",C10,"/",C11) -> Varme: // | E13: =CONCATENATE(G8," ",H9,"/",H10,"/",H11) -> Kjøling: // | G13: Vannvolum | H13: Elektrisk effekt [W] | I13: Lydtrykk [dB(A)]**** | J13: Lydeffekt [dB(A)]****
C14: Varme effekt | D14: Vannmengde | E14: Kjøle effekt | F14: =D14 -> Vannmengde
A15: Lüfter aus (richtwert)
A16: EN16430 | B16: Styresignal
B17: Auslegungsstufe 2
B18: Auslegungsstufe 3
B19: Viftespenning [V]
A20: * | B20: Kjølekapasitet beregnes i henhold til EN16430 med viftene som blåser oppover for alle typer.
A21: ** | B21: Når vannvolumet er gitt i gallon, er dette imperial gallons.
A22: *** | B22: Lydeffekt i henhold til ISO 3741: 2010. For lydtrykknivået er det en antatt romdemping på 8 dB (A).

Sheet SP (hidden)
B1: Selectiontool Strada Hybrid
B3: Longitud | D3: mm | E3: Formulary | F3: Dispositivo estático | G3: Hum. Relativa | H3: Unit | I3: Copiar todos los datos
B4: Altura | D4: =D3 -> mm | E4: Versión | F4: Dispositivo Hybrid | G4: Convers. de unidades | H4: DBH set | I4: Unidades-SI
B5: Tipo | E5: Temperaturas | F5: tipo de riel DBH | G5: Despositivo | I5: Unidades-Imperial
B6: Profund. | D6: =D3 -> mm | E6: La velocidad del ventilador en "0" tiene una emisión indicativa. | F6: Pérdida de carga del agua
B8: Calefacción: | G8: Enfriamiento:
B9: Agua impulsión | E9: =B9 -> Agua impulsión | I9: =D9 -> 0
B10: Agua retorno | E10: =B10 -> Agua retorno | I10: =D9 -> 0
B11: Ambiente (bulbo seco) | E11: =B11 -> Ambiente (bulbo seco) | I11: =D9 -> 0
C13: =CONCATENATE(B8," ",C9,"/",C10,"/",C11) -> Calefacción: // | E13: =CONCATENATE(G8," ",H9,"/",H10,"/",H11) -> Enfriamiento: // | G13: Volumen de agua | H13: Potencia eléctrica absorbida [W] | I13: Presión sonora [dB(A)]**** | J13: Potencia sonora [dB(A)]****
C14: Emisión calefacción | D14: Caudal de agua, calefacción | E14: Emisión sensible Frío | F14: =D14 -> Caudal de agua, calefacción
A15: Fans off (indicative value)
A16: EN16430 | B16: Velocidad del ventilador
B17: Fan speed selection 2
B18: Fan speed selection 3
B19: Voltaje control [V]
A20: * | B20: La potencia de enfriamiento se calcula según la norma EN 16430 con ventiladores de todas las alturas.
A21: ** | B21: Cuando el volumen de agua se da en galones, las unidades son específicamente galones imperiales.
A22: *** | B22: Potencia sonora según ISO 3741: 2010, nivel de presión acústica con una amortiguación ambiental supuesta de 8 dB (A).

Sheet SW (hidden)
B1: Selectiontool Strada Hybrid
B3: Längd | D3: mm | E3: Inngangsskjema | F3: Statisk modell | G3: rel. Fuktighet | H3: Unit | I3: Kopiera all data
B4: Höjd | D4: =D3 -> mm | E4: Storlek | F4: Hybrid modell | G4: Enhetssystem | H4: DBH set | I4: SI-enheter
B5: Typ | E5: Temperaturer | F5: DBH rail typ | G5: Modell | I5: Imperiella-enheter
B6: Djup | D6: =D3 -> mm | E6: Om fläktarna är avstängda är utgången ett indikationsvärde. | F6: Tryckfall, vatten
B8: Värme: | G8: Kyla:
B9: Tillopp | E9: =B9 -> Tillopp | I9: =D9 -> 0
B10: Retur | E10: =B10 -> Retur | I10: =D9 -> 0
B11: Rum (torr) | E11: =B11 -> Rum (torr) | I11: =D9 -> 0
C13: =CONCATENATE(B8," ",C9,"/",C10,"/",C11) -> Värme: // | E13: =CONCATENATE(G8," ",H9,"/",H10,"/",H11) -> Kyla: // | G13: Vattenvolym | H13: Effektförbrukning [W] | I13: Ljudtryck [dB(A)]**** | J13: Ljudeffekt [dB(A)]****
C14: Effekt | D14: Vattenflöde | E14: Kyleffekt | F14: =D14 -> Vattenflöde
A15: Fans off (indicative value)
A16: EN16430 | B16: Fläkthastighet
B17: Fan speed selection 2
B18: Fan speed selection 3
B19: Spänning, Fläkt [V]
A20: * | B20: Kyleffekt är beräknad enligt EN16430 med fläktar blåsandes i riktning uppåt för alla höjder
A21: ** | B21: När vattenvolymen är given i gallon avser det Imperiella gallon.
A22: *** | B22: Ljudeffekt enligt ISO 3741:2010 ljudtryck med antagen ljudreduktion från rummet på 8 dB(A)

Sheet TS (hidden)
B1: Selectiontool Strada Hybrid
B3: Délka | D3: mm | E3: Formulary | F3: Statická jednotka | G3: Relativní vlhkost | H3: Jednotka | I3: Kopírovat všechna data
B4: Výška | D4: =D3 -> mm | E4: Verze | F4: Hybridní jednotka | G4: Převod jednotek | H4: DBH sada | I4: Mezinárodní (Sl)
B5: Typ | E5: Teploty | F5: DBH rail typ | G5: Device | I5: Imperiální
B6: Hloubka | D6: =D3 -> mm | E6: Pokud jsou ventilátory vypnuté, je výkon pouze orientační. | F6: Tlaková ztráta
B8: Topení: | G8: Chlazení:
B9: Voda na přívodu | E9: =B9 -> Voda na přívodu
B10: Voda na zpátečce | E10: =B10 -> Voda na zpátečce
B11: "Suchá" teplota vzduchu | E11: =B11 -> "Suchá" teplota vzduchu
C13: =CONCATENATE(B8," ",C9,"/",C10,"/",C11) -> Topení: // | E13: =CONCATENATE(G8," ",H9,"/",H10,"/",H11) -> Chlazení: // | G13: Objem vody | H13: Elektrický výkon [W] | I13: Akustický tlak [dB(A)]**** | J13: Akustický výkon [dB(A)]****
C14: Výkon Topení | D14: Průtok vody | E14: Výkon Chlazení | F14: Průtok vody
A15: Fans off (indicative value)
A16: EN16430 | B16: Rychlost otáček ventilátoru
B17: Fan speed selection 2
B18: Fan speed selection 3
B19: Napětí ventilárotu [V]
A20: * | B20: Chladicí výkon vypočítán podle EN 16430 s ventilátory, které u všech typů - výšek foukají nahoru.
A21: **
A22: *** | B22: Akustický výkon podle ISO 3741: 2010, hladina akustického tlaku s předpokládaným útlumem místnosti o 8 dB (A).

Sheet ExtraTaal1 (hidden)
B1: Selectiontool Strada Hybrid
B3: Length | D3: mm | E3: Formulary | F3: Static device | G3: rel. humid. | H3: Unit | I3: Copy all data
B4: Heigth | D4: =D3 -> mm | E4: Version | F4: Hybrid device | G4: Unit conversion | H4: DBH set | I4: SI-units
B5: Type | E5: Temperatures | F5: DBH rail type | G5: Device | I5: Imperial-units
B6: Depth | D6: =D3 -> mm | E6: If the fans are switched off, the output is an indicative value. | F6: Water side pressure loss
B8: Heating: | G8: Cooling:
B9: Supply water | E9: =B9 -> Supply water | I9: =D9 -> 0
B10: Return water | E10: =B10 -> Return water | I10: =D9 -> 0
B11: Entering air (dry bulb) | E11: =B11 -> Entering air (dry bulb) | I11: =D9 -> 0
C13: =CONCATENATE(B8," ",C9,"/",C10,"/",C11) -> Heating: // | E13: =CONCATENATE(G8," ",H9,"/",H10,"/",H11) -> Cooling: // | G13: Water volume | H13: Electrical consumption [W] | I13: Sound pressure level [dB(A)]**** | J13: Sound power [dB(A)]****
C14: Heating capacity | D14: Water flow | E14: Cooling capacity | F14: =D14 -> Water flow
A15: Fans off (indicative value)
A16: EN16430 | B16: Fan speed
B17: Fan speed selection 2
B18: Fan speed selection 3
B19: Fan voltage [V]
A20: * | B20: Cooling power is calcullated according EN16430 with fans blowing up for all heights.
A21: ** | B21: When the water volume is given in gallons, the units are specifically imperial gallons.
A22: *** | B22: Soundpower according to ISO 3741:2010, sound pressure level with assumed room damping of 8 dB(A).

Sheet ExtraTaal2 (hidden)
B1: Selectiontool Strada Hybrid
B3: Length | D3: mm | E3: Formulary | F3: Static device | G3: rel. humid. | H3: Unit | I3: Copy all data
B4: Heigth | D4: =D3 -> mm | E4: Version | F4: Hybrid device | G4: Unit conversion | H4: DBH set | I4: SI-units
B5: Type | E5: Temperatures | F5: DBH rail type | G5: Device | I5: Imperial-units
B6: Depth | D6: =D3 -> mm | E6: If the fans are switched off, the output is an indicative value. | F6: Water side pressure loss
B8: Heating: | G8: Cooling:
B9: Supply water | E9: =B9 -> Supply water | I9: =D9 -> 0
B10: Return water | E10: =B10 -> Return water | I10: =D9 -> 0
B11: Entering air (dry bulb) | E11: =B11 -> Entering air (dry bulb) | I11: =D9 -> 0
C13: =CONCATENATE(B8," ",C9,"/",C10,"/",C11) -> Heating: // | E13: =CONCATENATE(G8," ",H9,"/",H10,"/",H11) -> Cooling: // | G13: Water volume | H13: Electrical consumption [W] | I13: Sound pressure level [dB(A)]**** | J13: Sound power [dB(A)]****
C14: Heating capacity | D14: Water flow | E14: Cooling capacity | F14: =D14 -> Water flow
A15: Fans off (indicative value)
A16: EN16430 | B16: Fan speed
B17: Fan speed selection 2
B18: Fan speed selection 3
B19: Fan voltage [V]
A20: * | B20: Cooling power is calcullated according EN16430 with fans blowing up for all heights.
A21: ** | B21: When the water volume is given in gallons, the units are specifically imperial gallons.
A22: *** | B22: Soundpower according to ISO 3741:2010, sound pressure level with assumed room damping of 8 dB(A).

Sheet ExtraTaal3 (hidden)
B1: Selectiontool Strada Hybrid
B3: Length | D3: mm | E3: Formulary | F3: Static device | G3: rel. humid. | H3: Unit | I3: Copy all data
B4: Heigth | D4: =D3 -> mm | E4: Version | F4: Hybrid device | G4: Unit conversion | H4: DBH set | I4: SI-units
B5: Type | E5: Temperatures | F5: DBH rail type | G5: Device | I5: Imperial-units
B6: Depth | D6: =D3 -> mm | E6: If the fans are switched off, the output is an indicative value. | F6: Water side pressure loss
B8: Heating: | G8: Cooling:
B9: Supply water | E9: =B9 -> Supply water | I9: =D9 -> 0
B10: Return water | E10: =B10 -> Return water | I10: =D9 -> 0
B11: Entering air (dry bulb) | E11: =B11 -> Entering air (dry bulb) | I11: =D9 -> 0
C13: =CONCATENATE(B8," ",C9,"/",C10,"/",C11) -> Heating: // | E13: =CONCATENATE(G8," ",H9,"/",H10,"/",H11) -> Cooling: // | G13: Water volume | H13: Electrical consumption [W] | I13: Sound pressure level [dB(A)]**** | J13: Sound power [dB(A)]****
C14: Heating capacity | D14: Water flow | E14: Cooling capacity | F14: =D14 -> Water flow
A15: Fans off (indicative value)
A16: EN16430 | B16: Fan speed
B17: Fan speed selection 2
B18: Fan speed selection 3
B19: Fan voltage [V]
A20: * | B20: Cooling power is calcullated according EN16430 with fans blowing up for all heights.
A21: ** | B21: When the water volume is given in gallons, the units are specifically imperial gallons.
A22: *** | B22: Soundpower according to ISO 3741:2010, sound pressure level with assumed room damping of 8 dB(A).
